[Event "11th Festival Palmanova-A 2022"]
[Site "Strassoldo"]
[Date "2022.12.11"]
[Round "6.4"]
[White "Savanovic, Maksim"]
[Black "Liloni, Francesco Mattia"]
[Result "0-1"]
[ECO "B13"]
[WhiteElo "2154"]
[BlackElo "1909"]
[Annotator "TA"]
[PlyCount "104"]
[EventDate "2022.12.08"]
[EventType "swiss"]
[EventCountry "ITA"]
[SourceTitle "playchess.com"]
[Source "ChessBase"]
[SourceQuality "1"]
[TimeControl "5400+30"]

{[%evp 9,104,0,14,9,14,1,21,-16,39,0,72,62,122,112,102,75,68,42,124,72,87,93,68,69,91,94,107,102,97,95,90,78,118,0,0,-33,0,0,0,-24,0,0,0,0,0,-36,0,0,0,0,10,10,10,4,10,0,0,0,0,0,0,0,9,0,0,0,0,-38,-38,-38,-38,-39,-24,-27,-22,-22,-26,-24,0,-366,-260,-518,-518,-518,-511,-510,-510,-1143,-1097,-966,-951,-1456,-1438,-1318,-1318,-1042,-912]} 1. d4 {[%emt 0:03:28]} d5 {[%emt 0:00:09]} 2. Bf4 {[%emt 0:00:08]} c5 {[%emt 0:00:09]} 3. e3 {[%emt 0:00:06]} cxd4 {[%emt 0:00:46]} 4. exd4 {[%emt 0:00:01]} Nc6 {[%emt 0:00:11]} 5. c3 {[%emt 0:00:18][%cal Bc2c3,Bc3c4][%mdl 32]} f6 {[%emt 0:00:19]} 6. Nf3 {[%emt 0:04:25] Against e5. B13: Caro-Kann: Exchange Variation and Panov-Botvinnik Attack.} g5 {[%emt 0:00:07] Inhibits c4.} 7. Be3 {[%emt 0:02:43]} (7. Nxg5 fxg5 8. Qh5+ Kd7 9. Bxg5 Qe8 $17) 7... g4 {[%emt 0:04:43] [#]} 8. Nfd2 $146 {[%emt 0:12:27] The position is equal.} ({Predecessor:} 8. Nh4 Qb6 9. Na3 e5 10. dxe5 Qxb2 11. Nb5 Rb8 12. Nc7+ Kf7 13. Qxd5+ Be6 14. Qxe6+ Kg7 15. Qxg4+ Kf7 16. Bc4+ {1-0 (16) Weetik,V (2423)-Ronka,E (2324) Chess.com INT 2021}) 8... Bf5 {[%emt 0:00:52]} ({Better is} 8... e5 $1 $11) 9. c4 {[%emt 0:19:34]} e6 {[%emt 0:12:41]} (9... e5 $11 {keeps the balance.} 10. cxd5 Nxd4 11. Bxd4 exd4 12. Qa4+ Kf7) 10. Nc3 $16 {[%emt 0:02:58]} Nb4 {[%emt 0:01:59]} (10... h5 $14) 11. Rc1 $36 {[%emt 0:01:40][%mdl 2048] Keeping Black busy.} h5 {[%emt 0:02:26]} 12. Qb3 {[%emt 0:14:06] Strongly threatening a3.} Rc8 {[%emt 0:02:35]} 13. cxd5 {[%emt 0:12:20]} exd5 {[%emt 0:07:33]} ({Black should play} 13... Nxd5 $14 14. Bc4 (14. Qxb7 Nge7 $11) 14... Nge7) 14. a3 {[%emt 0:03:47]} (14. Kd1 $142) 14... Nd3+ {[%emt 0:01:43]} 15. Bxd3 {[%emt 0:00:02]} Bxd3 {[%emt 0:00:09]} 16. Qxb7 {[%emt 0:01:08]} (16. Qxd5 $2 Qxd5 17. f3 Qf5 $19) 16... Rc7 {[%emt 0:01:04]} 17. Qb3 {[%emt 0:00:29]} Kf7 {[%emt 0:07:44]} 18. Ne2 {[%emt 0:03:48]} (18. Qxd5+ $2 {is the wrong capture.} Qxd5 19. Ndb1 Qxg2 $19) 18... Rxc1+ {[%emt 0:00:20]} 19. Nxc1 {[%emt 0:00:03]} Ba6 {[%emt 0:00:09]} 20. Nd3 {[%emt 0:01:03]} h4 {[%emt 0:06:22]} 21. Nb4 {[%emt 0:05:48]} ({White should try} 21. O-O $16) 21... Bxb4 $11 {[%emt 0:00:56]} 22. Qxb4 {[%emt 0:00:36]} (22. axb4 $5 {[%cal Rb4b5]} Bb5 23. Ne4 $11) 22... Qc7 {[%emt 0:01:05][%cal Rc7c1] [#]} (22... Qc8 {looks sharper.} 23. Kd1 Bd3 24. Qc3 Qxc3 25. bxc3 Ne7) 23. Qc5 {[%emt 0:00:53] Inhibits Qc1+.} Qb7 {[%emt 0:00:41] ...Ne7 is the strong threat.} 24. Qb4 {[%emt 0:02:32]} Qxb4 {[%emt 0:03:30]} (24... Qc8 {feels hotter.} 25. Kd1 Bd3 26. Qc3 Qxc3 27. bxc3 Ne7) 25. axb4 {[%emt 0:00:01]} Ne7 {[%emt 0:00:18]} 26. Nb3 {[%emt 0:03:13]} Rb8 {[%emt 0:00:14]} 27. Bd2 {[%emt 0:01:54]} Nc6 {[%emt 0:01:05][%cal Oa6c4][%mdl 1024] Black has compensation.} (27... Nf5 $5 {[%cal Rb8e8]} 28. Nc5 Re8+ 29. Kd1 Bb5 $15) 28. Nc5 {[%emt 0:00:49]} Bc4 {[%emt 0:00:08]} 29. b3 {[%emt 0:00:55]} Re8+ {[%emt 0:00:14]} 30. Be3 $1 {[%emt 0:00:47]} Bb5 {[%emt 0:00:15]} 31. Kd2 {[%emt 0:00:26]} Nxb4 {[%emt 0:00:40]} 32. Ra1 {[%emt 0:00:57]} a6 {[%emt 0:00:20]} 33. Kc3 {[%emt 0:01:18]} Nc6 {[%emt 0:02:21]} 34. Ra2 {[%emt 0:00:57]} (34. Nxa6 $2 {loses.} Ra8 35. f3 gxf3 36. gxf3 Rxa6 $19) 34... a5 {[%emt 0:03:55]} 35. Nb7 {[%emt 0:01:00] [#] Hoping for Nd6+.} Ke6 {[%emt 0:11:42] Against Nd6} 36. Nxa5 {[%emt 0:00:36]} Ra8 {[%emt 0:00:10]} 37. b4 {[%emt 0:00:10]} Kf5 {[%emt 0:01:03]} 38. Rb2 {[%emt 0:01:20]} Nxa5 {[%emt 0:03:58]} 39. bxa5 {[%emt 0:00:04]} Rxa5 $15 {[%emt 0:00:17][%mdl 4096] Endgame KRB-KRB} 40. Kb4 {[%emt 0:01:02]} Ra8 {[%emt 0:00:11]} 41. Kc5 {[%emt 0:00:01]} Bc4 {[%emt 0:01:29]} 42. Rb7 {[%emt 0:00:57]} Rh8 {[%emt 0:00:40] Inhibits Rh7.} 43. Kd6 {[%emt 0:00:35]} h3 {[%emt 0:00:35]} (43... Bf1 $5 {[%cal Rf1g2]}) 44. g3 {[%emt 0:00:14][%mdl 8192]} (44. gxh3 $1 $11 {and White is okay.} Rxh3 45. Rf7) 44... Ra8 {[%emt 0:00:58]} 45. Rh7 $2 {[%emt 0:00:49]} (45. Rb1) 45... Ra6+ $19 {[%emt 0:00:28] Black is clearly winning.} 46. Kc5 {[%emt 0:00:13]} Ke4 {[%emt 0:00:13]} 47. Rg7 {[%emt 0:00:47]} Kf3 {[%emt 0:00:20]} 48. Rg6 {[%emt 0:00:27]} (48. Bd2 $142) 48... f5 {[%emt 0:00:51]} 49. Rg5 {[%emt 0:00:17]} Rf6 {[%emt 0:00:22] aiming for ...Kg2.} 50. Rg7 {[%emt 0:00:45]} Kg2 {[%emt 0:00:07]} 51. Rb7 {[%emt 0:00:01]} Kxh2 {[%emt 0:00:15]} 52. Rb2 {[%emt 0:00:29]} Kg2 {[%emt 0:00:12] Weighted Error Value: White=0.49/Black=0.14 (very precise)} 0-1

[Event "11th Festival Palmanova-A 2022"]
[Site "Strassoldo"]
[Date "2022.12.11"]
[Round "6.5"]
[White "Casadio, Niccolo`"]
[Black "Kalosha, Zhiulien Oleksii"]
[Result "0-1"]
[ECO "D02"]
[WhiteElo "2095"]
[BlackElo "2092"]
[Annotator "TA"]
[PlyCount "78"]
[EventDate "2022.12.08"]
[EventType "swiss"]
[EventCountry "ITA"]
[SourceTitle "playchess.com"]
[Source "ChessBase"]
[SourceQuality "1"]
[TimeControl "5400+30"]

{[%evp 15,78,-3,-4,-5,0,-29,-21,-16,-33,-24,-29,-39,-28,-39,-15,-14,-9,-23,-4,-12,0,0,21,20,21,0,0,-2,-4,-23,-22,-156,-161,-172,-163,-149,-133,-143,-116,-154,-58,-154,0,0,0,-2,61,-131,-7,-1248,-1260,-1238,-1222,-1130,-1066,-1056,-950,-1498,-1437,-1694,-1650,-5102,-3194,-2117,-2065]} 1. d4 {[%emt 0:00:03]} d5 {[%emt 0:00:11]} 2. Bf4 {[%emt 0:00:04]} Nf6 {[%emt 0:00:18]} 3. e3 {[%emt 0:00:07]} e6 {[%emt 0:01:21]} 4. Nf3 {[%emt 0:00:06]} c5 {[%emt 0:00:30]} 5. c3 {[%emt 0:00:10]} Nc6 {[%emt 0:01:04]} 6. Nbd2 {[%emt 0:00:17]} Bd6 {[%emt 0:00:33]} 7. Bg3 {[%emt 0:00:07]} O-O {[%emt 0:01:44]} 8. Bd3 {[%emt 0:00:03]} b6 {[%emt 0:03:40]} 9. e4 {[%emt 0:03:34] Threatens to win with e5. D02: 1 d4 d5 2 Nf3 sidelines, including 2...Nf6 3 g3 and 2...Nf6 3 Bf4.} Be7 $1 {[%emt 0:25:09] 9...Be7 scores better than 9...dxe4.} 10. e5 {[%emt 0:03:29]} Nh5 {[%emt 0:00:25]} 11. Ng5 {[%emt 0:00:34] The position is equal.} Bxg5 {[%emt 0:01:01]} (11... Nxg3 $2 12. Bxh7+ Kh8 13. Nxf7+ Rxf7 14. hxg3 $18) 12. Qxh5 {[%emt 0:00:06][%csl Gd3][%cal Rh5h7]} g6 {[%emt 0:05:37]} (12... cxd4 $2 13. Qxh7#) 13. Qe2 {[%emt 0:00:10]} cxd4 {[%emt 0:08:11]} 14. h4 $1 {[%emt 0:00:09]} Bxd2+ {[%emt 0:03:40]} 15. Qxd2 {[%emt 0:00:06]} dxc3 {[%emt 0:00:29]} 16. bxc3 {[%emt 0:00:04]} d4 {[%emt 0:03:00]} (16... h5 {keeps more tension.} 17. Qh6 Qc7 18. O-O Rd8) 17. Be4 {[%emt 0:04:20]} Bb7 {[%emt 0:03:05]} 18. cxd4 {[%emt 0:00:53] [#]} Rb8 $146 {[%emt 0:06:40]} (18... Qd7 $5 {[%cal Rc6d4]}) ({Predecessor:} 18... Qd7 19. Rd1 Rad8 20. O-O Nxd4 21. Qxd4 Qxd4 22. Rxd4 Rxd4 23. Bxb7 Rfd8 24. Bc6 a6 {½-½ (30) Owen,K (2372)-Beveridge,C (2251) ICCF email 2020}) 19. Bxc6 {[%emt 0:01:17]} Bxc6 {[%emt 0:00:09]} 20. O-O {[%emt 0:00:04]} Qd5 {[%emt 0:00:47][%csl Gc6][%cal Rd5g2]} 21. f3 {[%emt 0:00:11]} Rfd8 $36 {[%emt 0:05:55][%mdl 2048] Black has good play.} 22. Rfd1 {[%emt 0:06:40]} Ba4 {[%emt 0:01:56]} 23. h5 {[%emt 0:00:16]} Bxd1 $17 {[%emt 0:02:35] Black is more active.} 24. Rxd1 {[%emt 0:00:06]} Qa5 $1 {[%emt 0:16:08]} (24... gxh5 25. Bh4 Rdc8 26. Be7 $11 (26. Bf6 Kf8 $11)) 25. Qf4 {[%emt 0:01:29]} Qa4 {[%emt 0:00:29]} (25... gxh5 26. Bh4 Qa4 27. Rd2 $18) (25... Qxa2 26. Qf6 gxh5 27. Qg5+ Kf8 28. Qh6+ (28. Bh4 $2 Qc2 $19) 28... Ke8 29. Qxh7 $11) 26. Rd2 {[%emt 0:03:29]} Qb4 {[%emt 0:03:58]} (26... gxh5 27. Bh4 Rd7 28. Bf6 $18) 27. Bh4 {[%emt 0:01:57]} Rdc8 {[%emt 0:01:50]} (27... Rd7 $17 28. Kh2 Rc8) 28. Bf6 {[%emt 0:00:45] [#]} ({Better is} 28. Kh2 $15) 28... Rc1+ $2 {[%emt 0:02:10]} ({Much less strong is} 28... gxh5 29. Qg5+ Kf8 30. Kh2 $16 (30. d5 Qb1+ 31. Kf2 Qg6 $16)) (28... Rb7 $1 $17 {Hoping for ...Qb1+.} 29. Qh6 Qf8) 29. Kh2 $11 {[%emt 0:00:15][%cal Od2b2]} Rbc8 {[%emt 0:00:51]} (29... gxh5 {is a self mate.} 30. Qh6) 30. Qg5 {[%emt 0:00:45]} (30. Qh6 $5 Qf8 $8 31. Qg5 $15) 30... Qf8 {[%emt 0:00:32]} (30... R1c2 $11 31. Qh6 Qf8) 31. h6 $2 {[%emt 0:00:55] [#]} (31. d5 $14 {keeps the upper hand.} exd5 32. hxg6 fxg6 33. Rxd5) 31... R1c7 {[%emt 0:00:53]} (31... Qb4 $1 $17 {And now ...R1c2 would win.} 32. Qf4 R8c2 33. Rxc2 Rxc2) 32. Rc2 $2 {[%emt 0:01:13][%mdl 8192] Now White is beyond hope.} Rxc2 $19 {[%emt 0:00:26] Black is clearly winning.} 33. Be7 {[%emt 0:00:18]} f6 {[%emt 0:00:02]} 34. exf6 {[%emt 0:01:49]} Qf7 {[%emt 0:00:09][%cal Of7e8]} 35. a3 {[%emt 0:00:33]} R2c7 {[%emt 0:00:17]} 36. d5 {[%emt 0:02:08]} exd5 {[%emt 0:00:17][%cal Oc7e7]} 37. Qe5 {[%emt 0:00:11]} Rd7 {[%emt 0:00:32]} 38. Qd4 {[%emt 0:00:28]} Rxe7 {[%emt 0:00:27]} 39. fxe7 {[%emt 0:00:17]} Re8 {[%emt 0:00:25] Weighted Error Value: White=0.89/Black=0.31} 0-1

[Event "11th Festival Palmanova-A 2022"]
[Site "Strassoldo"]
[Date "2022.12.11"]
[Round "6.6"]
[White "Savanovic, Aleksandar"]
[Black "Belli, Giorgio"]
[Result "0-1"]
[ECO "C19"]
[WhiteElo "2365"]
[BlackElo "2165"]
[Annotator "TA"]
[PlyCount "76"]
[EventDate "2022.12.08"]
[EventType "swiss"]
[EventCountry "ITA"]
[SourceTitle "playchess.com"]
[Source "ChessBase"]
[SourceQuality "1"]
[TimeControl "5400+30"]

{[%evp 14,76,0,0,0,0,0,0,0,0,0,0,0,-12,-12,-19,0,0,50,30,64,48,45,37,50,-64,-83,-203,-194,-200,-95,-112,-86,-86,-14,-8,-12,-108,0,-135,176,167,277,269,262,260,278,273,270,186,178,121,99,116,223,192,211,101,87,-697,-676,-29997,-29998,-29998,-29999]} 1. e4 {[%emt 0:03:18]} e6 {[%emt 0:02:46]} 2. d4 {[%emt 0:00:10]} d5 {[%emt 0:00:11]} 3. Nc3 {[%emt 0:00:07]} Bb4 {[%emt 0:00:15]} 4. e5 {[%emt 0:00:11]} c5 {[%emt 0:00:07]} 5. a3 {[%emt 0:00:05][%cal Ba2a3,Ba3a4][%mdl 32]} Bxc3+ {[%emt 0:00:07]} 6. bxc3 {[%emt 0:00:06]} Ne7 {[%emt 0:00:09]} 7. a4 {[%emt 0:01:04]} Qa5 {[%emt 0:00:37] 7...b6 is setting a new trend.} 8. Qd2 {[%emt 0:00:41]} b6 {[%emt 0:00:11] is the legacy move (8...Nbc6). C19: French: 3 Nc3 Bb4: Main line: 7 Nf3 and 7 a4.} 9. Bb5+ {[%emt 0:01:58]} Bd7 {[%emt 0:00:21]} 10. Bd3 {[%emt 0:02:15]} c4 {[%emt 0:07:27] The position is equal.} 11. Be2 {[%emt 0:00:06] [#]} Bxa4 $146 {[%emt 0:01:13]} ({Predecessor:} 11... O-O 12. Ba3 Re8 13. Nh3 Bxa4 14. O-O Nbc6 15. Nf4 Nf5 16. Bg4 Nce7 17. Nh5 Kh8 18. Bd1 b5 19. g4 Nh4 20. f4 {1-0 (20) Packroff,H (2201)-Hoexter,H (2138) ICCF email 2015}) 12. Nf3 {[%emt 0:00:36]} Nbc6 {[%emt 0:06:30]} 13. O-O {[%emt 0:01:28]} b5 {[%emt 0:03:43]} 14. h4 {[%emt 0:03:01][%cal Bh2h4,Bh4h5,Bh5h6][%mdl 32]} O-O {[%emt 0:01:50]} 15. h5 {[%emt 0:00:37]} Qd8 {[%emt 0:01:44]} (15... h6 $11) 16. h6 $1 $14 {[%emt 0:02:37]} g6 {[%emt 0:00:07]} 17. Ng5 {[%emt 0:17:55]} (17. Re1 {simplifies} a5 18. Ba3 b4 19. cxb4 axb4 20. Bxb4 Nxb4 21. Qxb4 Qd7 22. Qd2) 17... a5 {[%emt 0:06:45]} 18. g4 {[%emt 0:04:11]} Ra6 {[%emt 0:10:25]} 19. Rxa4 {[%emt 0:15:33]} bxa4 $15 {[%emt 0:00:49]} 20. Qf4 {[%emt 0:00:09]} (20. Ba3 $17) 20... Nc8 $19 {[%emt 0:05:15]} 21. Ba3 {[%emt 0:00:50] [#]} Rb6 $1 {[%emt 0:00:22]} 22. Bf3 $17 {[%emt 0:18:20] [#]} Nb4 $1 {[%emt 0:01:58][%cal Oc8a7]} 23. Kg2 {[%emt 0:11:13] [#]} (23. cxb4 axb4 24. Bb2 a3 $19) 23... f6 {[%emt 0:01:55]} (23... Na6 $1 $17 {[%cal Of7f6]} 24. Bxf8 (24. Qe3 Na7) 24... Qxf8) 24. exf6 $40 {[%emt 0:00:56][%mdl 128] White is up to no good.} Rxf6 {[%emt 0:01:16]} 25. Qd2 {[%emt 0:00:31]} (25. Qe5 $11 {keeps the balance.} Na7 26. cxb4) 25... Nc6 {[%emt 0:01:57]} (25... Na6 $1 $17 26. Qe3 Nc7) 26. Bc5 {[%emt 0:02:35]} (26. Qe3 $11) 26... Rb7 $2 {[%emt 0:07:23][%mdl 8192]} (26... Rb8 $1 $17 {stays on course.} 27. Re1 Qd7) 27. Re1 $18 {[%emt 0:00:13]} Rbf7 {[%emt 0:01:15]} (27... Qd7 28. Qe3 $14) (27... N8e7 $142) 28. Nxf7 {[%emt 0:01:03]} Kxf7 {[%emt 0:00:07]} 29. Qe3 $1 {[%emt 0:00:11]} g5 {[%emt 0:06:03]} 30. Qxg5 {[%emt 0:01:24]} Rg6 {[%emt 0:00:06]} 31. Qe3 {[%emt 0:03:54]} Qh4 {[%emt 0:01:34] [#]} 32. Qf4+ {[%emt 0:03:38]} ({Better is} 32. Bxd5 $1 $18 {[%mdl 512]} Qxg4+ 33. Kf1) 32... Rf6 $16 {[%emt 0:02:20]} 33. Qg3 {[%emt 0:01:37]} Qg5 {[%emt 0:01:02]} (33... Qxg3+ $16 34. Kxg3 Rg6) 34. Rb1 {[%emt 0:00:07]} (34. Qc7+ $6 N8e7) 34... Rxh6 {[%emt 0:03:10] [#]} 35. Rb7+ {[%emt 0:01:14]} (35. Ba3 $1 $18 {[%cal Ra3c1]} Rg6 36. Qc7+ N6e7 37. Rb7 (37. Qxa5 Qf4 $17)) 35... N8e7 {[%emt 0:00:11] And now ...Qc1 would win.} 36. Qc7 $2 {[%emt 0:00:49][%mdl 8192] [#]} (36. Qd6 $16 Qh4 37. Kf1 (37. Qxc6 $2 {gets mated.} Qh1+ 38. Kg3 Qh2#) 37... Qh3+ 38. Bg2 (38. Ke2 Rf6 $11) 38... Qxg4 39. Rxe7+ (39. Qxc6 $2 Qd1#) (39. f3 Qg5 $11) 39... Nxe7 40. Qxe7+ Kg6 41. Qe8+ Kf5 42. f3 (42. Qxa4 $2 Qd1#)) 36... Qc1 $1 $19 {[%emt 0:01:55] ( -> ...Qh1+)} 37. Be2 {[%emt 0:03:42]} (37. Kg3 Qg1+) 37... Qh1+ {[%emt 0:00:19]} 38. Kg3 {[%emt 0:00:02]} Rh3+ {[%emt 0:26:05] What a fight!   Weighted Error Value: White=0.61/Black=0.42} 0-1

[Event "11th Festival Palmanova-A 2022"]
[Site "Strassoldo"]
[Date "2022.12.11"]
[Round "6.7"]
[White "Negro, Roberto"]
[Black "Neuschmied, Siegfried"]
[Result "1/2-1/2"]
[ECO "D02"]
[WhiteElo "2117"]
[BlackElo "2244"]
[Annotator "TA"]
[PlyCount "40"]
[EventDate "2022.12.08"]
[EventType "swiss"]
[EventCountry "ITA"]
[SourceTitle "playchess.com"]
[Source "ChessBase"]
[SourceQuality "1"]
[TimeControl "5400+30"]

{[%evp 9,40,8,8,7,6,5,8,9,4,8,7,3,2,3,56,0,11,0,0,0,18,0,0,0,0,-10,9,3,52,58,115,93,164]} 1. Nf3 {[%emt 0:00:16]} d5 {[%emt 0:00:45]} 2. d4 {[%emt 0:02:58]} Nf6 {[%emt 0:00:14]} 3. c3 {[%emt 0:02:42]} e6 {[%emt 0:04:35]} 4. Bf4 {[%emt 0:00:46]} Bd6 {[%emt 0:01:05]} 5. e3 {[%emt 0:00:28]} O-O {[%emt 0:01:26]} 6. Bd3 {[%emt 0:01:32] D02: 1 d4 d5 2 Nf3 sidelines, including 2...Nf6 3 g3 and 2...Nf6 3 Bf4.} b6 {[%emt 0:00:22]} 7. O-O {[%emt 0:01:06]} Bb7 {[%emt 0:00:08]} 8. Nbd2 {[%emt 0:00:31] The position is equal.} c5 {[%emt 0:05:27]} 9. Qe2 {[%emt 0:11:51]} Qc7 {[%emt 0:08:39]} 10. Bxd6 {[%emt 0:05:41]} Qxd6 {[%emt 0:00:02]} 11. e4 {[%emt 0:00:21] [#]} Qf4 $146 {[%emt 0:25:08]} (11... dxe4 $11 12. Nxe4 Nxe4 13. Bxe4 Bxe4 14. Qxe4 Nd7) ({Predecessor:} 11... dxe4 12. Nxe4 Nxe4 13. Bxe4 Bxe4 14. Qxe4 Nd7 15. Rad1 Qc7 16. dxc5 Nxc5 17. Qe5 Rac8 18. Qxc7 Rxc7 {½-½ (44) Sandipan,C (2529)-Das,S (2434) Ahmedabad 2019}) 12. Rfe1 {[%emt 0:13:45]} (12. e5 $14 Nfd7 13. g3) 12... cxd4 {[%emt 0:03:03]} 13. Nxd4 {[%emt 0:05:40]} (13. g3 {simplifies} Qg4 14. Nxd4 Qxe2 15. Rxe2 Nxe4 16. Nxe4 dxe4 17. Bxe4 Bxe4 18. Rxe4 Rd8 19. Kg2) 13... dxe4 {[%emt 0:03:33]} ({But not} 13... Ng4 14. g3 Qh6 15. f4 $16) 14. Nxe4 {[%emt 0:00:11]} Nbd7 {[%emt 0:01:00]} (14... Ng4 $2 15. g3 Qh6 16. Qxg4 $18) (14... Bxe4 {simplifies} 15. Bxe4 Nxe4 16. Qxe4 Qxe4 17. Rxe4 Rd8) 15. h3 {[%emt 0:09:47]} (15. g3 {simplifies} Qb8 16. Rad1 Nxe4 17. Bxe4 Nf6 18. Bxb7 Qxb7 19. c4) 15... a6 {[%emt 0:00:36]} 16. Rad1 {[%emt 0:01:32]} Rfd8 {[%emt 0:02:34]} 17. Nf3 {[%emt 0:02:14]} h6 {[%emt 0:02:04]} 18. Nxf6+ {[%emt 0:03:14]} Nxf6 {[%emt 0:06:38]} (18... Qxf6 $11 {should be considered.} 19. Be4 Bxe4 20. Qxe4 Nc5) 19. Ne5 $1 $14 {[%emt 0:00:11][%cal Oe5f7] [#] Hoping for Nxf7!} Re8 {[%emt 0:03:06]} (19... Nh7 $14) 20. Bc2 $16 {[%emt 0:04:15] g3 is the strong threat.} Re7 {[%emt 0:08:36] Weighted Error Value: White=0.06 (flawless) /Black=0.18 (very precise)} (20... Qg5 $16 {is a better defense.} 21. g3 Nd5) 1/2-1/2

[Event "11th Festival Palmanova-A 2022"]
[Site "Strassoldo"]
[Date "2022.12.11"]
[Round "6.8"]
[White "Urbani, Gabriel"]
[Black "Pozzari, Simone"]
[Result "1/2-1/2"]
[ECO "B59"]
[WhiteElo "2110"]
[BlackElo "2139"]
[Annotator "TA"]
[PlyCount "90"]
[EventDate "2022.12.08"]
[EventType "swiss"]
[EventCountry "ITA"]
[SourceTitle "playchess.com"]
[Source "ChessBase"]
[SourceQuality "1"]
[TimeControl "5400+30"]

{[%evp 16,90,4,0,22,-3,0,-12,0,0,0,0,0,0,31,4,17,0,0,-18,0,0,12,-3,-2,-2,-2,-3,0,0,0,0,0,0,0,-5,0,0,0,0,16,0,0,-9,0,0,0,0,0,0,0,0,0,0,0,0,0,0,0,0,0,0,0,0,393,393,393,98,474,439,455,393,393,393,393,393,378]} 1. e4 {[%emt 0:00:03]} c5 {[%emt 0:00:06]} 2. Nf3 {[%emt 0:00:11]} d6 {[%emt 0:00:05]} 3. d4 {[%emt 0:00:06]} cxd4 {[%emt 0:00:04]} 4. Nxd4 {[%emt 0:00:05]} Nf6 {[%emt 0:00:08]} 5. Nc3 {[%emt 0:00:20]} Nc6 {[%emt 0:00:08]} 6. Be2 {[%emt 0:03:16]} e5 {[%emt 0:00:06]} 7. Nb3 {[%emt 0:00:36]} Be7 {[%emt 0:00:08]} 8. Be3 {[%emt 0:01:14]} Be6 {[%emt 0:01:19]} 9. f3 {[%emt 0:05:06]} O-O {[%emt 0:02:40] B59: Classical Sicilian: 6 Be2 e5 7 Nb3.} 10. Qd2 {[%emt 0:01:41]} d5 {[%emt 0:06:30]} 11. exd5 {[%emt 0:03:06]} Nxd5 {[%emt 0:00:33] The position is equal.} 12. Nxd5 {[%emt 0:01:59]} Qxd5 {[%emt 0:00:15]} 13. Qxd5 {[%emt 0:06:24]} Bxd5 {[%emt 0:00:06]} 14. O-O-O {[%emt 0:01:09]} Rad8 {[%emt 0:03:30]} 15. Kb1 {[%emt 0:05:58]} b6 {[%emt 0:08:46] [#]} 16. Rd2 $146 {[%emt 0:09:06]} ({Predecessor:} 16. h4 f5 17. Bg5 Bxg5 18. hxg5 Be6 19. Rde1 Ne7 20. Rh2 g6 21. Bd3 Nc6 22. Bb5 {1-0 (38) Martinez,A-Roldan,J Albacete 1994}) 16... Be6 {[%emt 0:04:19]} 17. Rhd1 {[%emt 0:01:59]} f5 {[%emt 0:21:40]} 18. c3 {[%emt 0:09:33]} g5 {[%emt 0:05:11]} 19. Rxd8 {[%emt 0:02:56]} Rxd8 {[%emt 0:00:49]} 20. Rxd8+ {[%emt 0:00:59]} Nxd8 {[%emt 0:00:19]} 21. Kc2 {[%emt 0:03:02]} Nb7 {[%emt 0:03:15]} 22. Nd2 {[%emt 0:04:11]} Kf7 {[%emt 0:01:05]} (22... Bxa2 $2 23. b3 $18) 23. Bc4 {[%emt 0:03:44]} Bxc4 {[%emt 0:02:39]} 24. Nxc4 $11 {[%emt 0:00:20][%mdl 4096] Endgame KBN-KBN} Ke6 {[%emt 0:00:09]} 25. b4 {[%emt 0:01:32]} h5 {[%emt 0:06:53]} 26. h3 {[%emt 0:02:10]} b5 {[%emt 0:09:46]} 27. Nd2 {[%emt 0:04:05]} a5 {[%emt 0:02:43]} 28. bxa5 {[%emt 0:08:44]} Nxa5 {[%emt 0:00:05]} 29. Kd3 {[%emt 0:02:19]} Kd5 {[%emt 0:01:10]} 30. g4 {[%emt 0:04:31]} hxg4 {[%emt 0:00:39]} 31. hxg4 {[%emt 0:00:06]} fxg4 {[%emt 0:04:48]} 32. fxg4 {[%emt 0:00:10]} Nc4 {[%emt 0:00:10]} 33. Nxc4 {[%emt 0:06:35]} e4+ {[%emt 0:01:25]} 34. Ke2 {[%emt 0:00:21]} Kxc4 {[%emt 0:00:07] KB-KB} 35. Kd2 {[%emt 0:04:07]} Bf6 {[%emt 0:05:48]} 36. Kc2 {[%emt 0:00:12]} Bd8 {[%emt 0:05:38]} 37. Kd2 {[%emt 0:01:32]} Bf6 {[%emt 0:00:41]} 38. Kc2 {[%emt 0:00:06]} Be7 {[%emt 0:00:07]} 39. Kd2 {[%emt 0:01:06]} b4 $2 {[%emt 0:01:22][%mdl 8192]} (39... Bd8 $11) 40. cxb4 $18 {[%emt 0:00:09]} Kxb4 {[%emt 0:00:28] [#]} 41. Bd4 $2 {[%emt 0:00:31]} (41. Kc2 $1 $18 {and the rest is easy. Hoping for Bd2+.} Kc4 42. Kd2) 41... Kc4 $2 {[%emt 0:00:26][%mdl 8192] Black cannot hold the game after this.} (41... Ka3 $16 {is more resistant.} 42. Ke3 Kxa2 43. Kxe4 Kb3) 42. Ke3 {[%emt 0:00:17]} Kd5 {[%emt 0:00:04]} 43. Bb6 {[%emt 0:00:34]} Ba3 {[%emt 0:00:33] White is winning.} 44. Ba5 {[%emt 0:00:52]} Ke5 {[%emt 0:02:27]} 45. Bc7+ {[%emt 0:00:48]} Kd5 {[%emt 0:03:50][%mdl 32768] Weighted Error Value: White=0.23 (precise) /Black=0.42. An unexpected result.} 1/2-1/2